bitfinex/quotes_SOLUSD_20230116
["timestamp","ask_amount","ask_price","bid_price","bid_amount"]
[1673859207576,41.46196354,23.125,23.1,21.11]
[1673859207785,41.46196354,23.125,23.093,20.0]
[1673859207786,172.46,23.124,23.093,20.0]
[1673859207980,222.20513087,23.124,23.094,139.313]
[1673859208312,92.03079069,23.123,23.094,171.813]
[1673859208529,120.0,23.114,23.094,139.313]
[1673859208735,20.0,23.112,23.094,119.313]
[1673859209139,63.74762336,23.111,23.094,119.313]
[1673859209456,63.74762336,23.11,23.095,20.0]
[1673859209872,63.74762336,23.109,23.095,20.0]
[1673859210093,63.74762336,23.109,23.094,119.313]
[1673859210094,21.46196354,23.109,23.094,119.313]
[1673859210310,21.46196354,23.108,23.094,119.313]
[1673859210503,63.74762336,23.108,23.094,119.313]
[1673859210840,21.46196354,23.107,23.09,21.23]
[1673859211575,120.0,23.114,23.09,21.23]
[1673859211984,120.0,23.114,23.092,20.0]
[1673859212188,120.0,23.114,23.093,52.5]
[1673859212393,120.0,23.114,23.101,20.0]
[1673859213030,95.9838,23.114,23.101,20.0]
[1673859214510,95.9838,23.114,23.1,21.25]
[1673859214708,21.46196354,23.113,23.1,21.25]
[1673859215128,21.46196354,23.113,23.093,20.0]
[1673859215441,95.9838,23.106,23.093,20.0]
[1673859215663,95.9838,23.106,23.091,32.5]
[1673859215858,21.46196354,23.113,23.09,21.17]
[1673859216073,21.46196354,23.113,23.091,20.0]
[1673859217242,95.9838,23.114,23.091,20.0]
[1673859217452,20.0,23.113,23.091,20.0]
[1673859218524,95.9838,23.114,23.091,20.0]
[1673859218732,20.0,23.113,23.091,20.0]
[1673859219466,95.9838,23.114,23.1,21.25]
[1673859219659,80.5574,23.114,23.1,21.25]
[1673859219873,80.5574,23.114,23.101,20.0]
[1673859220095,80.5574,23.116,23.101,20.0]
[1673859220308,80.5574,23.125,23.101,20.0]
[1673859220500,20.0,23.124,23.101,20.0]
[1673859220704,41.46196354,23.124,23.101,20.0]
[1673859220919,53.92196354,23.123,23.1,21.25]
[1673859221351,32.46,23.123,23.101,20.0]
[1673859221553,20.0,23.124,23.101,20.0]
[1673859221767,20.0,23.126,23.101,20.0]
[1673859221969,32.45,23.129,23.111,20.0]
[1673859222302,80.5574,23.13,23.111,20.0]
[1673859223134,28.88983399,23.129,23.111,20.0]
[1673859223344,28.88983399,23.129,23.112,20.0]
[1673859223545,21.46196354,23.129,23.112,20.0]
[1673859223763,80.5574,23.13,23.113,20.0]
[1673859223971,0.0074,23.13,23.12,21.21]
[1673859224192,0.0074,23.138,23.121,20.0]
[1673859224404,0.0074,23.138,23.122,20.0]
[1673859224616,21.46196354,23.142,23.124,20.0]
[1673859224929,32.42,23.148,23.126,20.0]
[1673859225226,21.46196354,23.148,23.128,20.0]
[1673859227342,32.42,23.15,23.128,20.0]
[1673859227539,21.46196354,23.149,23.128,20.0]
[1673859228292,32.42,23.15,23.13,21.23]
[1673859228506,21.46196354,23.154,23.13,21.23]
[1673859228706,21.46196354,23.15,23.131,20.0]
[1673859229129,32.41,23.161,23.131,20.0]
[1673859229130,20.0,23.16,23.131,20.0]
[1673859229336,32.41,23.159,23.131,20.0]
[1673859229552,20.0,23.158,23.131,20.0]
[1673859229755,32.41,23.157,23.132,20.0]
[1673859229964,32.4,23.162,23.13,21.23]
[1673859230176,21.46196354,23.15,23.13,21.23]
[1673859230393,21.46196354,23.15,23.128,20.0]
[1673859230827,53.88196354,23.15,23.128,20.0]
[1673859231017,53.88196354,23.15,23.127,226.9002]
[1673859231231,20.91196354,23.149,23.129,20.0]
[1673859231433,32.42,23.15,23.129,20.0]
[1673859231770,32.41,23.159,23.13,41.25]
[1673859231968,52.4,23.164,23.131,20.0]
[1673859232173,42.92392708,23.155,23.133,20.0]
[1673859232373,21.46196354,23.155,23.134,20.0]
[1673859232922,38.77114654,23.151,23.134,20.0]
[1673859233132,38.77114654,23.151,23.135,20.0]
[1673859233320,17.0,23.15,23.135,20.0]
[1673859233530,17.309183,23.151,23.135,20.0]
[1673859234692,17.309183,23.151,23.136,20.0]
[1673859234904,17.309183,23.151,23.137,32.44]
[1673859235110,17.309183,23.151,23.139,20.0]
[1673859235336,17.309183,23.151,23.141,20.0]
[1673859235635,17.309183,23.151,23.135,20.0]
[1673859235861,17.309183,23.151,23.14,21.23]
[1673859236277,17.309183,23.151,23.141,20.0]
[1673859237228,17.309183,23.151,23.143,20.0]
[1673859237548,17.309183,23.151,23.144,20.0]
[1673859237739,17.309183,23.151,23.145,20.0]
[1673859238270,120.0,23.171,23.147,20.0]
[1673859238469,120.0,23.171,23.15,21.25]
[1673859238678,120.0,23.171,23.151,20.0]
[1673859239142,137.285041,23.171,23.151,20.0]
[1673859240497,120.0,23.17,23.151,20.0]
[1673859240706,120.0,23.163,23.151,20.0]
[1673859241336,120.0,23.163,23.152,17.0]
[1673859241557,137.285041,23.171,23.153,4.10106]
[1673859241757,137.285041,23.171,23.16,21.25]
[1673859242297,137.285041,23.171,23.161,20.0]
[1673859243027,17.285041,23.171,23.161,20.0]
[1673859243857,17.285041,23.171,23.162,20.0]
[1673859244056,17.285041,23.171,23.161,20.0]
[1673859245439,17.0,23.17,23.16,21.25]
[1673859245655,32.39,23.169,23.154,20.0]
[1673859245874,32.39,23.169,23.14,134.4164]
[1673859245875,17.0,23.168,23.14,134.4164]
[1673859246067,52.4,23.167,23.14,134.4164]
[1673859246277,37.0,23.166,23.14,134.4164]
[1673859246505,32.4,23.165,23.14,134.4164]
[1673859246700,17.0,23.164,23.14,134.4164]
[1673859246900,21.46196354,23.165,23.14,134.4164]
[1673859247110,41.46196354,23.163,23.14,134.4164]
[1673859247318,69.4,23.162,23.136,109.3182]
[1673859247528,69.4,23.162,23.13,41.21]
[1673859247529,90.86196354,23.162,23.13,41.21]
[1673859247735,90.86196354,23.162,23.128,20.0]
[1673859247736,21.46196354,23.161,23.128,20.0]
[1673859247963,52.41,23.16,23.121,20.0]
[1673859248170,20.0,23.159,23.121,20.0]
[1673859248365,52.41,23.158,23.121,20.0]
[1673859248578,73.87196354,23.158,23.121,20.0]
[1673859248783,21.46196354,23.157,23.121,20.0]
[1673859249100,95.74110571,23.156,23.121,20.0]
[1673859249312,133.80609887,23.156,23.13,21.25]
[1673859249536,59.5269567,23.155,23.13,21.25]
[1673859249745,52.42,23.154,23.13,21.25]
[1673859249953,111.9469567,23.154,23.13,21.25]
[1673859250162,21.46196354,23.153,23.13,21.25]
[1673859250387,32.42,23.152,23.13,21.25]
[1673859250579,20.0,23.151,23.131,20.0]
[1673859250793,32.42,23.15,23.131,20.0]
[1673859251760,20.0,23.151,23.131,20.0]
[1673859251964,32.42,23.154,23.14,23.63]
[1673859252290,32.4,23.168,23.14,23.63]
[1673859252492,21.46196354,23.158,23.14,23.63]
[1673859253125,32.41,23.157,23.14,23.63]
[1673859253629,21.46196354,23.156,23.14,23.63]
[1673859254071,32.4,23.168,23.141,20.0]
[1673859254278,41.46196354,23.167,23.141,20.0]
[1673859254491,32.4,23.166,23.14,23.63]
[1673859254697,120.0,23.163,23.14,23.63]
[1673859254896,20.0,23.161,23.14,23.63]
[1673859255106,52.41,23.16,23.14,23.63]
[1673859255318,32.41,23.16,23.14,23.63]
[1673859255530,20.0,23.159,23.14,23.63]
[1673859255740,32.41,23.158,23.14,23.63]
[1673859256065,53.87196354,23.158,23.14,23.63]
[1673859256252,41.46196354,23.157,23.14,23.63]
[1673859256467,32.41,23.156,23.14,23.63]
[1673859256687,20.0,23.155,23.14,23.63]
[1673859256890,32.42,23.154,23.14,23.63]
[1673859257113,20.0,23.153,23.133,20.0]
[1673859257437,41.46196354,23.153,23.133,20.0]
[1673859257626,21.46196354,23.152,23.133,20.0]
[1673859257955,52.42,23.151,23.13,43.54]
[1673859258146,52.42,23.151,23.13,23.54]
[1673859258358,21.46196354,23.15,23.13,23.54]
[1673859258879,21.46196354,23.15,23.131,20.0]
[1673859260478,32.42,23.149,23.13,23.54]
[1673859260697,20.0,23.148,23.122,20.0]
[1673859260997,20.0,23.146,23.122,20.0]
[1673859261197,52.43,23.145,23.12,23.68]
[1673859261428,73.89196354,23.145,23.12,23.68]
[1673859261640,41.46196354,23.144,23.11,23.54]
[1673859261858,20.0,23.142,23.111,20.0]
[1673859262080,52.43,23.141,23.111,20.0]
[1673859262273,20.0,23.14,23.111,20.0]
[1673859262479,32.44,23.139,23.111,20.0]
[1673859262694,20.0,23.138,23.111,20.0]
[1673859263022,32.44,23.137,23.111,20.0]
[1673859263230,20.0,23.136,23.111,20.0]
[1673859263426,32.44,23.135,23.111,20.0]
[1673859263636,20.0,23.134,23.111,20.0]
[1673859263852,32.45,23.133,23.111,20.0]
[1673859264280,20.0,23.132,23.111,20.0]
[1673859264800,20.0,23.13,23.11,23.54]
[1673859265019,20.0,23.13,23.105,20.0]
[1673859265203,32.45,23.129,23.105,20.0]
[1673859265648,94.14362336,23.129,23.101,20.0]
[1673859265833,20.0,23.127,23.101,20.0]
[1673859266041,52.45,23.126,23.093,26.17618637]
[1673859266263,20.0,23.125,23.093,20.0]
[1673859266478,52.46,23.124,23.093,20.0]
[1673859266800,20.0,23.123,23.093,20.0]
[1673859266997,52.46,23.122,23.093,20.0]
[1673859269525,21.46196354,23.121,23.094,20.0]
[1673859269845,32.46,23.12,23.1,23.64]
[1673859270271,21.46196354,23.119,23.1,23.64]
[1673859270794,32.47,23.118,23.101,20.0]
[1673859271004,32.46,23.121,23.101,20.0]
[1673859271202,21.46196354,23.119,23.1,23.64]
[1673859271411,32.47,23.118,23.1,23.64]
[1673859271955,21.46196354,23.117,23.1,23.64]
[1673859272876,32.46,23.121,23.101,20.0]
[1673859273196,21.46196354,23.12,23.101,20.0]
[1673859273826,21.46196354,23.12,23.1,23.64]
[1673859274030,21.46196354,23.12,23.095,20.0]
[1673859274242,52.46,23.119,23.09,43.75]
[1673859274467,625.0,23.1,23.09,23.75]
[1673859276586,625.0,23.1,23.09,23.25]
[1673859277101,605.4339,23.1,23.091,32.5]
[1673859277413,462.846,23.1,23.091,32.5]
[1673859277810,462.846,23.1,23.09,23.25]
[1673859277811,462.846,23.1,23.092,40.0]
[1673859281092,437.9032,23.1,23.092,40.0]
[1673859281306,146.5705,23.127,23.094,20.0]
[1673859281504,20.0,23.125,23.101,20.0]
[1673859281703,146.5705,23.127,23.101,20.0]
[1673859281704,52.46,23.124,23.101,20.0]
[1673859281913,20.0,23.123,23.101,20.0]
[1673859282123,32.46,23.122,23.101,20.0]
[1673859282346,20.0,23.121,23.101,20.0]
[1673859282660,20.0,23.12,23.101,20.0]
[1673859282862,20.0,23.121,23.101,20.0]
[1673859283713,41.46196354,23.121,23.1,23.54]
[1673859283931,32.46,23.12,23.1,23.54]
[1673859284372,21.46196354,23.119,23.1,23.54]
[1673859284685,20.0,23.117,23.1,23.54]
[1673859285076,32.47,23.116,23.1,23.54]
[1673859285289,29.97,23.118,23.1,23.54]
[1673859285512,32.46,23.12,23.1,23.54]
[1673859285724,21.46196354,23.117,23.1,23.54]
[1673859286253,20.0,23.115,23.1,23.54]
[1673859287728,20.0,23.115,23.094,20.0]
[1673859287938,20.0,23.113,23.096,20.0]
[1673859288140,20.0,23.113,23.097,20.0]
[1673859288455,17.0,23.112,23.097,20.0]
[1673859288650,17.0,23.113,23.097,20.0]
[1673859288866,21.46196354,23.111,23.09,23.51]
[1673859289071,17.0,23.11,23.091,20.0]
[1673859289718,21.46196354,23.111,23.091,20.0]
[1673859290331,21.46196354,23.111,23.09,23.74]
[1673859290545,32.48,23.11,23.09,23.74]
[1673859290778,20.0,23.109,23.09,23.74]
[1673859290954,32.48,23.108,23.09,23.74]
[1673859291165,37.0,23.107,23.09,23.74]
[1673859291386,32.48,23.106,23.09,23.74]
[1673859291585,17.0,23.105,23.09,23.74]
[1673859292030,21.46196354,23.104,23.09,23.74]
[1673859292241,17.0,23.103,23.09,23.74]
[1673859292860,21.46196354,23.102,23.081,20.0]
[1673859293071,21.46196354,23.102,23.08,23.77]
[1673859293072,20.0,23.1,23.08,23.77]
[1673859293280,21.46196354,23.102,23.08,23.77]
[1673859293489,38.46196354,23.099,23.081,20.0]
[1673859294951,17.0,23.099,23.081,20.0]
[1673859296447,20.0,23.103,23.08,23.77]
[1673859296657,52.49,23.102,23.08,23.77]
[1673859296871,21.46196354,23.099,23.08,23.77]
[1673859297696,17.0,23.098,23.08,23.77]
[1673859298120,20.0,23.096,23.08,23.77]
[1673859298440,17.0,23.095,23.08,23.77]
[1673859299378,38.46196354,23.097,23.072,20.0]
[1673859299602,41.46196354,23.094,23.07,23.86]
[1673859299819,49.5,23.093,23.07,23.86]
[1673859300035,70.96196354,23.093,23.07,23.86]
[1673859300226,20.0,23.092,23.07,23.86]
[1673859300438,49.5,23.091,23.07,23.86]
[1673859300760,32.5,23.091,23.07,23.86]
[1673859301078,21.46196354,23.09,23.07,23.86]
[1673859301497,21.46196354,23.09,23.071,20.0]
[1673859301813,32.5,23.091,23.071,20.0]
[1673859302133,38.46196354,23.09,23.071,20.0]
[1673859302546,20.0,23.089,23.07,23.86]
[1673859302881,17.0,23.088,23.07,23.86]
[1673859303056,70.97196354,23.088,23.07,23.86]
[1673859303269,17.0,23.088,23.07,23.86]
[1673859303590,17.0,23.088,23.071,20.0]
[1673859303803,21.46196354,23.088,23.071,20.0]
[1673859304003,17.0,23.087,23.071,20.0]
[1673859304967,32.5,23.095,23.071,20.0]
[1673859305176,32.5,23.097,23.08,23.68]
[1673859305388,32.48,23.105,23.081,20.0]
[1673859305703,32.48,23.112,23.09,23.62]
[1673859305888,32.47,23.113,23.09,23.62]
[1673859306100,32.47,23.117,23.1,23.8]
[1673859306437,108.2888,23.118,23.1,23.8]
[1673859306642,108.2888,23.118,23.1,23.7211]
[1673859306965,21.46196354,23.116,23.1,23.7211]
[1673859307151,131.47936354,23.114,23.1,23.7211]
[1673859307358,20.0,23.113,23.092,20.0]
[1673859307578,131.47936354,23.114,23.093,20.0]
[1673859307895,21.46196354,23.112,23.09,23.68]
[1673859308302,20.0,23.111,23.09,23.68]
[1673859308741,21.46196354,23.11,23.09,23.68]
[1673859309158,17.0,23.109,23.09,23.68]
[1673859309570,21.46196354,23.11,23.09,23.68]
[1673859309985,21.46196354,23.11,23.091,20.0]
[1673859310326,110.0174,23.114,23.091,20.0]
[1673859310542,21.46196354,23.113,23.091,20.0]
[1673859310755,110.0174,23.114,23.092,20.0]
[1673859311064,32.46,23.123,23.1,152.68]
[1673859311275,20.0,23.136,23.102,20.0]
[1673859311467,20.0,23.136,23.103,20.0]
[1673859311468,21.46196354,23.132,23.103,20.0]
[1673859311680,32.45,23.131,23.103,20.0]
[1673859312015,20.0,23.126,23.104,20.0]
[1673859312224,20.0,23.126,23.105,20.0]
[1673859312425,17.0,23.125,23.105,20.0]
[1673859312842,17.0,23.125,23.103,20.0]
[1673859313056,21.46196354,23.124,23.101,20.0]
[1673859313254,20.0,23.122,23.1,23.68]
[1673859313463,17.0,23.121,23.1,23.68]
[1673859313675,38.46196354,23.121,23.1,23.68]
[1673859314094,21.46196354,23.12,23.1,23.68]
[1673859314299,17.0,23.119,23.101,20.0]
[1673859316213,150.9307,23.126,23.101,20.0]
[1673859316409,21.46196354,23.121,23.101,20.0]
[1673859316737,21.46196354,23.121,23.11,23.68]
[1673859316931,143.6821,23.135,23.11,23.68]
[1673859317133,21.46196354,23.13,23.11,23.68]
[1673859317344,143.6821,23.135,23.111,20.0]
[1673859317562,21.46196354,23.132,23.111,20.0]
[1673859317778,135.58246354,23.127,23.12,25.5]
[1673859317992,21.46196354,23.127,23.11,25.5]
[1673859318621,17.0,23.126,23.11,25.5]
[1673859318833,20.0,23.125,23.11,25.5]
[1673859319044,17.0,23.124,23.11,25.5]
[1673859319256,38.46196354,23.124,23.11,25.5]
[1673859319457,17.0,23.124,23.11,25.5]
[1673859320946,17.0,23.126,23.11,25.5]
[1673859321159,20.0,23.124,23.11,25.5]
[1673859321378,49.46,23.123,23.11,25.5]
[1673859321798,17.0,23.123,23.11,25.5]
[1673859322205,17.0,23.124,23.11,25.5]
[1673859322408,20.0,23.123,23.11,25.5]
[1673859322630,17.0,23.122,23.11,25.37]
[1673859323465,21.46196354,23.121,23.11,25.37]
[1673859323675,17.0,23.12,23.11,25.37]
[1673859324431,32.46,23.126,23.11,25.37]
[1673859324630,21.46196354,23.123,23.101,20.0]
[1673859324837,20.0,23.122,23.101,20.0]
[1673859325363,21.46196354,23.122,23.11,25.52]
[1673859325682,32.45,23.133,23.11,25.52]
[1673859325899,21.46196354,23.133,23.112,20.0]
[1673859326086,21.46196354,23.126,23.112,20.0]
[1673859326298,20.0,23.133,23.112,20.0]
[1673859326507,32.44,23.134,23.112,20.0]
[1673859326733,32.44,23.139,23.12,25.37]
[1673859326948,32.44,23.139,23.121,20.0]
[1673859327557,115.8144,23.14,23.13,25.52]
[1673859328201,21.46196354,23.149,23.13,25.52]
[1673859328202,32.43,23.148,23.13,25.52]
[1673859328610,21.46196354,23.147,23.13,25.52]
[1673859328823,20.0,23.145,23.13,25.52]
[1673859329179,21.46196354,23.144,23.13,25.52]
[1673859329675,20.0,23.143,23.13,25.52]
[1673859329999,41.46196354,23.143,23.13,25.52]
[1673859330517,21.46196354,23.143,23.13,25.52]
[1673859330918,49.43,23.142,23.113,32.47]
[1673859331128,49.43,23.142,23.1,122.08]
[1673859331129,20.0,23.141,23.12,25.45]
[1673859331342,49.44,23.14,23.121,20.0]
[1673859331566,20.0,23.139,23.121,20.0]
[1673859331779,49.44,23.138,23.121,20.0]
[1673859332099,70.90196354,23.138,23.121,20.0]
[1673859332303,21.46196354,23.137,23.121,20.0]
[1673859332625,32.44,23.14,23.121,20.0]
[1673859332815,21.46196354,23.14,23.122,20.0]
[1673859333041,21.46196354,23.139,23.122,20.0]
[1673859333450,21.46196354,23.139,23.121,20.0]
[1673859333869,17.0,23.138,23.121,20.0]
[1673859334085,20.0,23.137,23.121,20.0]
[1673859334305,69.44,23.136,23.12,25.45]
[1673859334524,69.44,23.136,23.11,25.37]
[1673859334525,90.90196354,23.136,23.11,25.37]
[1673859334841,20.0,23.134,23.11,25.37]
[1673859335047,69.45,23.133,23.11,25.37]
[1673859335246,50.13036939,23.133,23.12,25.37]
[1673859335457,28.66840585,23.133,23.12,25.37]
[1673859335785,11.66840585,23.133,23.121,20.0]
[1673859336526,52.45,23.132,23.12,25.37]
[1673859336835,20.0,23.131,23.12,25.37]
[1673859337048,17.0,23.13,23.12,25.37]
[1673859338198,20.0,23.138,23.12,25.37]
[1673859338199,110.6469,23.139,23.121,20.0]
[1673859338415,147.901,23.144,23.121,20.0]
[1673859338608,115.471,23.144,23.13,25.37]
[1673859338818,32.43,23.147,23.13,25.37]
[1673859340187,21.46196354,23.144,23.13,25.37]
[1673859340832,17.0,23.139,23.13,25.37]
[1673859341985,20.0,23.138,23.13,25.37]
[1673859342295,41.46196354,23.138,23.12,142.4267]
[1673859342512,17.0,23.137,23.12,142.4267]
[1673859342708,20.0,23.136,23.12,142.4267]
[1673859342919,17.0,23.135,23.12,142.4267]
[1673859343130,17.0,23.135,23.12,25.37]
[1673859343774,32.43,23.147,23.13,25.37]
[1673859343965,52.42,23.149,23.13,25.37]
[1673859344190,32.42,23.149,23.13,25.37]
[1673859344406,32.42,23.152,23.14,25.52]
[1673859344627,32.41,23.158,23.14,25.52]
[1673859344836,32.4,23.163,23.14,25.52]
[1673859345048,20.0,23.162,23.14,25.52]
[1673859345256,62.92392708,23.162,23.14,25.52]
[1673859345577,21.46196354,23.161,23.14,25.52]
[1673859345899,17.0,23.16,23.141,20.0]
[1673859346208,52.4,23.163,23.141,20.0]
[1673859346209,32.4,23.163,23.141,20.0]
[1673859346525,32.4,23.163,23.15,25.45]
[1673859346840,20.0,23.162,23.15,25.45]
[1673859347036,21.46196354,23.168,23.15,25.45]
[1673859347242,32.4,23.167,23.15,25.45]
[1673859347456,21.46196354,23.165,23.15,25.45]
[1673859347866,20.0,23.164,23.15,25.45]
[1673859348309,21.46196354,23.163,23.15,25.45]
[1673859348505,20.0,23.161,23.15,25.45]
[1673859348921,17.0,23.16,23.15,25.45]
[1673859349133,17.0,23.161,23.15,25.45]
[1673859349994,38.46196354,23.161,23.15,25.45]
[1673859352404,17.0,23.161,23.15,25.45]
[1673859352933,38.46196354,23.161,23.15,25.45]
[1673859354293,21.46196354,23.161,23.15,25.45]
[1673859355571,17.0,23.16,23.15,25.45]
[1673859355748,20.0,23.162,23.15,25.45]
[1673859355959,32.39,23.174,23.151,20.0]
[1673859356181,32.39,23.174,23.16,25.52]
[1673859356401,21.46196354,23.169,23.142,20.0]
[1673859356711,52.4,23.168,23.142,20.0]
[1673859357026,17.285041,23.171,23.16,25.52]
[1673859357340,17.285041,23.171,23.15,25.52]
[1673859357564,17.285041,23.171,23.16,25.37]
[1673859357975,32.39,23.17,23.16,25.37]
[1673859358185,17.285041,23.171,23.15,25.52]
[1673859358585,17.285041,23.171,23.151,20.0]
[1673859358794,20.0,23.169,23.15,25.52]
[1673859359005,49.4,23.168,23.15,25.52]
[1673859359211,20.0,23.167,23.15,25.52]
[1673859359540,69.4,23.166,23.15,25.52]
[1673859359743,20.0,23.165,23.15,25.52]
[1673859359952,49.4,23.164,23.15,25.52]
[1673859360164,20.0,23.162,23.15,25.52]
[1673859360478,49.41,23.161,23.14,45.52]
[1673859360690,17.0,23.161,23.14,45.52]
[1673859360898,17.0,23.161,23.136,6.02985801]
[1673859361111,84.04835238,23.16,23.134,20.0]
[1673859361319,17.0,23.159,23.134,20.0]
[1673859361524,72.41,23.158,23.134,20.0]
[1673859361839,20.0,23.156,23.13,25.45]
[1673859362153,69.42,23.155,23.13,25.45]
[1673859362491,20.0,23.154,23.13,25.45]
[1673859362799,20.0,23.152,23.13,25.45]
[1673859362998,17.0,23.151,23.13,25.45]
[1673859363208,17.0,23.151,23.131,20.0]
[1673859363634,17.0,23.152,23.131,20.0]
[1673859363846,31.57928904,23.151,23.131,20.0]
[1673859364174,17.0,23.15,23.131,20.0]
[1673859364373,17.0,23.152,23.131,20.0]
[1673859365226,130.9383,23.153,23.131,20.0]
[1673859365414,130.9383,23.153,23.14,25.52]
[1673859366465,17.0,23.152,23.14,25.52]
[1673859366678,31.57928904,23.163,23.141,52.43]
[1673859366888,32.39,23.17,23.15,25.45]
[1673859367104,140.8523,23.17,23.15,25.45]
[1673859368467,140.8523,23.17,23.151,20.0]
[1673859369099,108.4623,23.17,23.151,20.0]
[1673859370890,32.39,23.175,23.151,20.0]
[1673859371104,32.39,23.17,23.151,20.0]
[1673859371311,32.39,23.175,23.151,20.0]
[1673859372258,32.39,23.17,23.15,25.45]
[1673859372797,17.0,23.169,23.15,25.45]
[1673859374471,32.39,23.174,23.151,20.0]
[1673859374690,32.39,23.175,23.151,20.0]
[1673859375609,20.0,23.175,23.15,25.45]
[1673859375820,32.39,23.17,23.15,25.45]
[1673859376052,20.0,23.169,23.15,25.45]
[1673859376259,17.0,23.168,23.15,25.45]
[1673859376668,20.0,23.168,23.15,25.45]
[1673859376889,49.4,23.167,23.142,111.9119]
[1673859377109,135.0228,23.166,23.14,25.47]
[1673859377286,49.4,23.165,23.14,25.47]
[1673859377613,20.0,23.163,23.14,25.47]
[1673859377813,20.0,23.161,23.14,25.47]
[1673859378028,69.41,23.16,23.14,25.47]
[1673859378357,90.87196354,23.16,23.14,25.47]
[1673859379298,20.0,23.158,23.14,25.47]
[1673859379507,20.0,23.156,23.14,25.47]
[1673859379704,52.42,23.155,23.14,25.47]
[1673859379914,17.0,23.154,23.14,25.47]
[1673859380127,32.42,23.153,23.13,25.52]
[1673859380352,37.0,23.152,23.13,25.52]
[1673859380565,32.42,23.151,23.13,25.52]
[1673859380773,17.0,23.15,23.13,25.52]
[1673859381178,17.0,23.151,23.14,25.45]
[1673859381851,20.0,23.15,23.13,45.37]
[1673859382259,17.0,23.149,23.13,25.37]
[1673859383742,20.0,23.152,23.13,25.37]
[1673859383927,20.0,23.152,23.131,20.0]
[1673859385209,20.0,23.152,23.13,25.37]
[1673859385423,21.46196354,23.151,23.13,25.37]
[1673859385616,17.0,23.15,23.131,20.0]
[1673859386048,20.0,23.152,23.131,20.0]
[1673859386049,38.46196354,23.151,23.131,20.0]
[1673859386465,17.0,23.151,23.131,20.0]
[1673859386786,111.8391,23.153,23.14,25.52]
[1673859386980,32.4,23.164,23.14,25.52]
[1673859387521,21.46196354,23.163,23.141,20.0]
[1673859387714,32.41,23.162,23.141,20.0]
[1673859388263,20.0,23.161,23.14,25.52]
[1673859388477,20.0,23.159,23.14,25.52]